[Event "Titled Tuesday Blitz August 24 2021"]
[White "Lopez Del Alamo, Antonio"]
[Black "Kislov, Oleg"]
[WhiteFideId "2227339"]
[BlackFideId "13503774"]
[WhiteElo "2085"]
[BlackElo "2252"]
[Result "0-1"]
[Round "09"]
[TimeControl "180+1"]
[Date "2021.08.24"]
[WhiteClock "0:00:16"]
[BlackClock "0:00:19"]

1. e4 {[%clk 0:03:00]}  c5 {[%clk 0:02:57]} 2. Nf3 {[%clk 0:03:00]}  Nc6 {[%clk 0:02:56]} 3. Bb5 {[%clk 0:02:58]}  g6 {[%clk 0:02:55]} 4. Bxc6 {[%clk 0:02:58]}  dxc6 {[%clk 0:02:55]} 5. d3 {[%clk 0:02:58]}  Bg7 {[%clk 0:02:55]} 6. h3 {[%clk 0:02:58]}  e5 {[%clk 0:02:55]} 7. Be3 {[%clk 0:02:54]}  Qe7 {[%clk 0:02:53]} 8. Qd2 {[%clk 0:02:54]}  Nf6 {[%clk 0:02:51]} 9. Qc3 {[%clk 0:02:49]}  Nd7 {[%clk 0:02:51]} 10. a3 {[%clk 0:02:50]}  a5 {[%clk 0:02:37]} 11. O-O {[%clk 0:02:41]}  O-O {[%clk 0:02:35]} 12. a4 {[%clk 0:02:37]}  b6 {[%clk 0:02:34]} 13. Na3 {[%clk 0:02:36]}  Ba6 {[%clk 0:02:27]} 14. Nc4 {[%clk 0:02:34]}  Rfe8 {[%clk 0:02:13]} 15. b3 {[%clk 0:02:22]}  Rab8 {[%clk 0:02:12]} 16. Rae1 {[%clk 0:02:11]}  Nf8 {[%clk 0:02:09]} 17. Nh2 {[%clk 0:02:08]}  Ne6 {[%clk 0:01:59]} 18. Ng4 {[%clk 0:02:02]}  Nd4 {[%clk 0:01:57]} 19. Bxd4 {[%clk 0:02:00]}  cxd4 {[%clk 0:01:54]} 20. Qd2 {[%clk 0:02:00]}  h5 {[%clk 0:01:46]} 21. Nh2 {[%clk 0:01:59]}  Kh7 {[%clk 0:01:45]} 22. g3 {[%clk 0:01:45]}  Bc8 {[%clk 0:01:45]} 23. Kg2 {[%clk 0:01:38]}  Qe6 {[%clk 0:01:43]} 24. g4 {[%clk 0:01:37]}  Bh6 {[%clk 0:01:43]} 25. Qe2 {[%clk 0:01:35]}  Bf4 {[%clk 0:01:42]} 26. Qf3 {[%clk 0:01:31]}  Kh6 {[%clk 0:01:19]} 27. Rh1 {[%clk 0:01:26]}  Rg8 {[%clk 0:01:17]} 28. Reg1 {[%clk 0:01:24]}  Bd7 {[%clk 0:01:14]} 29. Kf1 {[%clk 0:01:20]}  b5 {[%clk 0:01:03]} 30. Nb2 {[%clk 0:01:12]}  c5 {[%clk 0:00:56]} 31. axb5 {[%clk 0:01:09]}  Bxb5 {[%clk 0:00:54]} 32. Ke2 {[%clk 0:01:08]}  a4 {[%clk 0:00:50]} 33. gxh5 {[%clk 0:00:51]}  gxh5 {[%clk 0:00:39]} 34. Rxg8 {[%clk 0:00:49]}  Rxg8 {[%clk 0:00:39]} 35. bxa4 {[%clk 0:00:49]}  Ba6 {[%clk 0:00:38]} 36. Nc4 {[%clk 0:00:35]}  Bxc4 {[%clk 0:00:37]} 37. dxc4 {[%clk 0:00:36]}  Qxc4+ {[%clk 0:00:37]} 38. Qd3 {[%clk 0:00:37]}  Qxa4 {[%clk 0:00:33]} 39. Nf3 {[%clk 0:00:34]}  c4 {[%clk 0:00:32]} 40. Qd1 {[%clk 0:00:34]}  Rd8 {[%clk 0:00:23]} 41. Re1 {[%clk 0:00:22]}  d3+ {[%clk 0:00:21]} 42. cxd3 {[%clk 0:00:22]}  cxd3+ {[%clk 0:00:21]} 43. Kf1 {[%clk 0:00:23]}  Qd7 {[%clk 0:00:21]} 44. Ng1 {[%clk 0:00:19]}  d2 {[%clk 0:00:20]} 45. Re2 {[%clk 0:00:20]}  Qd3 {[%clk 0:00:20]} 46. f3 {[%clk 0:00:19]}  Rg8 {[%clk 0:00:19]} 47. Kf2 {[%clk 0:00:18]}  Qd4+ {[%clk 0:00:19]} 48. Re3 {[%clk 0:00:16]}  Qxe3+ {[%clk 0:00:18]} 49. Kf1 {[%clk 0:00:16]}  Rxg1# {[%clk 0:00:19]} 0-1


[Site "https://www.chess.com"]

[Event "Titled Tuesday Blitz August 24 2021"]
[White "Machidon, Cristi"]
[Black "Goryachkina, Aleksandra"]
[WhiteFideId "13904590"]
[BlackFideId "4147103"]
[WhiteElo "2588"]
[BlackElo "2687"]
[Result "0-1"]
[Round "09"]
[TimeControl "180+1"]
[Date "2021.08.24"]
[WhiteClock "0:00:17"]
[BlackClock "0:00:49"]

1. d4 {[%clk 0:03:00]}  Nf6 {[%clk 0:02:59]} 2. Bf4 {[%clk 0:03:00]}  d5 {[%clk 0:02:55]} 3. e3 {[%clk 0:03:00]}  Bf5 {[%clk 0:02:52]} 4. c4 {[%clk 0:02:57]}  e6 {[%clk 0:02:51]} 5. Nc3 {[%clk 0:02:56]}  Bb4 {[%clk 0:02:43]} 6. Qb3 {[%clk 0:02:54]}  Nc6 {[%clk 0:02:31]} 7. a3 {[%clk 0:02:49]}  Bxc3+ {[%clk 0:02:29]} 8. bxc3 {[%clk 0:02:50]}  Na5 {[%clk 0:02:04]} 9. Qb4 {[%clk 0:02:20]}  b6 {[%clk 0:01:59]} 10. Nf3 {[%clk 0:02:14]}  c5 {[%clk 0:01:54]} 11. dxc5 {[%clk 0:02:14]}  O-O {[%clk 0:01:53]} 12. cxb6 {[%clk 0:02:02]}  axb6 {[%clk 0:01:52]} 13. Rd1 {[%clk 0:01:37]}  Qc8 {[%clk 0:01:39]} 14. Nd4 {[%clk 0:01:30]}  Bg6 {[%clk 0:01:33]} 15. Nb5 {[%clk 0:01:21]}  Nxc4 {[%clk 0:01:26]} 16. Nd6 {[%clk 0:01:11]}  Nxd6 {[%clk 0:01:25]} 17. Bxd6 {[%clk 0:01:12]}  Rd8 {[%clk 0:01:17]} 18. Be5 {[%clk 0:01:12]}  Ne4 {[%clk 0:01:10]} 19. c4 {[%clk 0:00:48]}  dxc4 {[%clk 0:00:57]} 20. Rxd8+ {[%clk 0:00:49]}  Qxd8 {[%clk 0:00:57]} 21. Bxc4 {[%clk 0:00:43]}  Ra4 {[%clk 0:00:49]} 22. Qb2 {[%clk 0:00:17]}  Rxc4 {[%clk 0:00:49]} 0-1


[Site "https://www.chess.com"]

[Event "Titled Tuesday Blitz August 24 2021"]
[White "Maevsky, Nikolay"]
[Black "Maksimovic, Bojan"]
[WhiteFideId "4198220"]
[BlackFideId "14408120"]
[WhiteElo "2213"]
[BlackElo "2439"]
[Result "0-1"]
[Round "09"]
[TimeControl "180+1"]
[Date "2021.08.24"]
[WhiteClock "0:00:19"]
[BlackClock "0:00:18"]

1. d4 {[%clk 0:03:00]}  Nf6 {[%clk 0:03:00]} 2. Nf3 {[%clk 0:02:59]}  c5 {[%clk 0:03:00]} 3. e3 {[%clk 0:02:58]}  b6 {[%clk 0:03:00]} 4. Bd3 {[%clk 0:02:57]}  Bb7 {[%clk 0:03:00]} 5. O-O {[%clk 0:02:57]}  e6 {[%clk 0:02:58]} 6. Nbd2 {[%clk 0:02:56]}  Be7 {[%clk 0:02:58]} 7. b3 {[%clk 0:02:56]}  O-O {[%clk 0:02:56]} 8. Bb2 {[%clk 0:02:56]}  d6 {[%clk 0:02:55]} 9. c4 {[%clk 0:02:55]}  Nbd7 {[%clk 0:02:55]} 10. Re1 {[%clk 0:02:54]}  a6 {[%clk 0:02:53]} 11. Rc1 {[%clk 0:02:54]}  Rc8 {[%clk 0:02:52]} 12. Bb1 {[%clk 0:02:53]}  Rc7 {[%clk 0:02:50]} 13. h3 {[%clk 0:02:52]}  Qa8 {[%clk 0:02:50]} 14. Qe2 {[%clk 0:02:39]}  Ne4 {[%clk 0:02:44]} 15. Nxe4 {[%clk 0:02:36]}  Bxe4 {[%clk 0:02:44]} 16. Bxe4 {[%clk 0:02:35]}  Qxe4 {[%clk 0:02:45]} 17. Red1 {[%clk 0:02:26]}  Qg6 {[%clk 0:02:22]} 18. dxc5 {[%clk 0:02:06]}  bxc5 {[%clk 0:02:07]} 19. Bc3 {[%clk 0:02:04]}  Qe4 {[%clk 0:02:00]} 20. Nd2 {[%clk 0:01:56]}  Qc6 {[%clk 0:02:00]} 21. Nf1 {[%clk 0:01:56]}  Nf6 {[%clk 0:01:56]} 22. Ng3 {[%clk 0:01:55]}  Ne4 {[%clk 0:01:38]} 23. Nxe4 {[%clk 0:01:23]}  Qxe4 {[%clk 0:01:39]} 24. Qg4 {[%clk 0:01:14]}  Qxg4 {[%clk 0:01:36]} 25. hxg4 {[%clk 0:01:14]}  Ra7 {[%clk 0:01:30]} 26. Ba5 {[%clk 0:01:13]}  Bd8 {[%clk 0:01:27]} 27. Bxd8 {[%clk 0:00:56]}  Rxd8 {[%clk 0:01:28]} 28. Rd3 {[%clk 0:00:55]}  Kf8 {[%clk 0:01:22]} 29. Rcd1 {[%clk 0:00:52]}  Ke7 {[%clk 0:01:22]} 30. e4 {[%clk 0:00:50]}  h6 {[%clk 0:00:57]} 31. Kf1 {[%clk 0:00:49]}  a5 {[%clk 0:00:49]} 32. e5 {[%clk 0:00:39]}  Rad7 {[%clk 0:00:48]} 33. exd6+ {[%clk 0:00:38]}  Rxd6 {[%clk 0:00:49]} 34. Ke2 {[%clk 0:00:35]}  Rxd3 {[%clk 0:00:29]} 35. Rxd3 {[%clk 0:00:35]}  Rxd3 {[%clk 0:00:29]} 36. Kxd3 {[%clk 0:00:36]}  f5 {[%clk 0:00:30]} 37. gxf5 {[%clk 0:00:21]}  exf5 {[%clk 0:00:31]} 38. Kc3 {[%clk 0:00:17]}  g5 {[%clk 0:00:21]} 39. a3 {[%clk 0:00:18]}  h5 {[%clk 0:00:19]} 40. b4 {[%clk 0:00:18]}  axb4+ {[%clk 0:00:20]} 41. axb4 {[%clk 0:00:18]}  cxb4+ {[%clk 0:00:20]} 42. Kxb4 {[%clk 0:00:19]}  h4 {[%clk 0:00:14]} 43. Kc3 {[%clk 0:00:19]}  g4 {[%clk 0:00:14]} 44. Kd3 {[%clk 0:00:19]}  h3 {[%clk 0:00:14]} 45. gxh3 {[%clk 0:00:19]}  gxh3 {[%clk 0:00:15]} 46. Ke3 {[%clk 0:00:17]}  h2 {[%clk 0:00:15]} 47. Kf4 {[%clk 0:00:17]}  h1=Q {[%clk 0:00:16]} 48. Kxf5 {[%clk 0:00:18]}  Qf3+ {[%clk 0:00:16]} 49. Ke5 {[%clk 0:00:18]}  Qxf2 {[%clk 0:00:17]} 50. Kd5 {[%clk 0:00:18]}  Kd7 {[%clk 0:00:17]} 51. c5 {[%clk 0:00:19]}  Kc7 {[%clk 0:00:18]} 0-1


[Site "https://www.chess.com"]

[Event "Titled Tuesday Blitz August 24 2021"]
[White "Maiorov, Nikita"]
[Black "Srihari L R"]
[WhiteFideId "13501720"]
[BlackFideId "46617116"]
[WhiteElo "2598"]
[BlackElo "2713"]
[Result "1-0"]
[Round "09"]
[TimeControl "180+1"]
[Date "2021.08.24"]
[WhiteClock "0:01:10"]
[BlackClock "0:00:28"]

1. d4 {[%clk 0:03:00]}  d5 {[%clk 0:02:59]} 2. c4 {[%clk 0:03:00]}  e6 {[%clk 0:02:59]} 3. Nc3 {[%clk 0:02:59]}  c5 {[%clk 0:02:59]} 4. cxd5 {[%clk 0:02:58]}  exd5 {[%clk 0:03:00]} 5. Nf3 {[%clk 0:02:57]}  Nc6 {[%clk 0:02:59]} 6. g3 {[%clk 0:02:56]}  Nf6 {[%clk 0:02:59]} 7. Bg2 {[%clk 0:02:53]}  cxd4 {[%clk 0:02:59]} 8. Nxd4 {[%clk 0:02:52]}  Bc5 {[%clk 0:02:59]} 9. Nb3 {[%clk 0:02:52]}  Bb6 {[%clk 0:02:59]} 10. Na4 {[%clk 0:02:51]}  O-O {[%clk 0:02:54]} 11. Nxb6 {[%clk 0:02:49]}  axb6 {[%clk 0:02:46]} 12. Be3 {[%clk 0:02:47]}  Re8 {[%clk 0:02:46]} 13. O-O {[%clk 0:02:43]}  Bg4 {[%clk 0:02:42]} 14. h3 {[%clk 0:02:40]}  Bh5 {[%clk 0:02:38]} 15. Re1 {[%clk 0:02:38]}  b5 {[%clk 0:02:23]} 16. Nd4 {[%clk 0:02:36]}  Rxe3 {[%clk 0:02:04]} 17. fxe3 {[%clk 0:02:35]}  Qd6 {[%clk 0:02:05]} 18. g4 {[%clk 0:02:32]}  Bxg4 {[%clk 0:01:57]} 19. hxg4 {[%clk 0:02:31]}  Nxg4 {[%clk 0:01:56]} 20. Nf3 {[%clk 0:02:30]}  Qg3 {[%clk 0:01:56]} 21. Qd2 {[%clk 0:01:31]}  Ra6 {[%clk 0:01:29]} 22. Rf1 {[%clk 0:01:24]}  Nce5 {[%clk 0:01:16]} 23. Qe1 {[%clk 0:01:22]}  Nxf3+ {[%clk 0:01:11]} 24. Rxf3 {[%clk 0:01:22]}  Qh2+ {[%clk 0:01:10]} 25. Kf1 {[%clk 0:01:22]}  Qh6 {[%clk 0:00:40]} 26. Qg3 {[%clk 0:01:18]}  Nh2+ {[%clk 0:00:37]} 27. Kf2 {[%clk 0:01:14]}  Rd6 {[%clk 0:00:28]} 28. Rh1 {[%clk 0:01:10]} 1-0


[Site "https://www.chess.com"]

[Event "Titled Tuesday Blitz August 24 2021"]
[White "Martinez Reyes, Pedro Ramon"]
[Black "Nazaretyan, Tigran"]
[WhiteFideId "3901807"]
[BlackFideId "24162345"]
[WhiteElo "2398"]
[BlackElo "2167"]
[Result "0-1"]
[Round "09"]
[TimeControl "180+1"]
[Date "2021.08.24"]
[WhiteClock "0:00:22"]
[BlackClock "0:00:11"]

1. d4 {[%clk 0:03:00]}  Nf6 {[%clk 0:02:59]} 2. c4 {[%clk 0:02:59]}  c5 {[%clk 0:02:59]} 3. d5 {[%clk 0:02:58]}  b5 {[%clk 0:02:58]} 4. cxb5 {[%clk 0:02:57]}  a6 {[%clk 0:02:58]} 5. b6 {[%clk 0:02:58]}  d6 {[%clk 0:02:58]} 6. Nc3 {[%clk 0:02:58]}  Nbd7 {[%clk 0:02:58]} 7. e4 {[%clk 0:02:59]}  g6 {[%clk 0:02:58]} 8. Nf3 {[%clk 0:02:59]}  Bg7 {[%clk 0:02:58]} 9. Be2 {[%clk 0:02:59]}  O-O {[%clk 0:02:58]} 10. Nd2 {[%clk 0:02:59]}  Nxb6 {[%clk 0:02:48]} 11. a4 {[%clk 0:02:58]}  a5 {[%clk 0:02:48]} 12. Bb5 {[%clk 0:02:57]}  e6 {[%clk 0:02:44]} 13. dxe6 {[%clk 0:02:53]}  Bxe6 {[%clk 0:02:42]} 14. O-O {[%clk 0:02:49]}  d5 {[%clk 0:02:42]} 15. exd5 {[%clk 0:02:49]}  Nfxd5 {[%clk 0:02:43]} 16. Nde4 {[%clk 0:02:42]}  Nxc3 {[%clk 0:02:35]} 17. bxc3 {[%clk 0:02:31]}  Qc7 {[%clk 0:02:24]} 18. Be3 {[%clk 0:02:24]}  Rfd8 {[%clk 0:02:14]} 19. Qf3 {[%clk 0:02:19]}  Bd5 {[%clk 0:02:10]} 20. Nf6+ {[%clk 0:02:18]}  Kh8 {[%clk 0:02:02]} 21. Nxd5 {[%clk 0:02:14]}  Nxd5 {[%clk 0:02:02]} 22. Bg5 {[%clk 0:02:03]}  f6 {[%clk 0:01:56]} 23. Rad1 {[%clk 0:01:56]}  fxg5 {[%clk 0:01:39]} 24. Rxd5 {[%clk 0:01:50]}  Rxd5 {[%clk 0:01:32]} 25. Qxd5 {[%clk 0:01:51]}  Rd8 {[%clk 0:01:26]} 26. Qf3 {[%clk 0:01:39]}  Qe5 {[%clk 0:01:12]} 27. c4 {[%clk 0:01:36]}  Rf8 {[%clk 0:01:09]} 28. Qd5 {[%clk 0:01:30]}  Qf4 {[%clk 0:01:01]} 29. g3 {[%clk 0:01:25]}  Qd4 {[%clk 0:00:59]} 30. Kg2 {[%clk 0:01:18]}  g4 {[%clk 0:00:57]} 31. Qxd4 {[%clk 0:01:13]}  cxd4 {[%clk 0:00:38]} 32. c5 {[%clk 0:01:11]}  Be5 {[%clk 0:00:30]} 33. Re1 {[%clk 0:01:08]}  Bb8 {[%clk 0:00:21]} 34. Bd7 {[%clk 0:01:01]}  Rd8 {[%clk 0:00:19]} 35. c6 {[%clk 0:01:01]}  Kg7 {[%clk 0:00:19]} 36. Re4 {[%clk 0:01:01]}  h5 {[%clk 0:00:14]} 37. Rxd4 {[%clk 0:01:01]}  Kf6 {[%clk 0:00:14]} 38. Rc4 {[%clk 0:01:00]}  Bc7 {[%clk 0:00:14]} 39. Rc5 {[%clk 0:01:00]}  Ke7 {[%clk 0:00:13]} 40. Rg5 {[%clk 0:00:59]}  Kf6 {[%clk 0:00:13]} 41. Rb5 {[%clk 0:00:59]}  Rb8 {[%clk 0:00:12]} 42. h3 {[%clk 0:00:45]}  Rxb5 {[%clk 0:00:12]} 43. axb5 {[%clk 0:00:45]}  gxh3+ {[%clk 0:00:13]} 44. Bxh3 {[%clk 0:00:39]}  a4 {[%clk 0:00:13]} 45. g4 {[%clk 0:00:19]}  a3 {[%clk 0:00:12]} 46. gxh5 {[%clk 0:00:20]}  a2 {[%clk 0:00:11]} 47. b6 {[%clk 0:00:21]}  Bxb6 {[%clk 0:00:11]} 48. h6 {[%clk 0:00:22]}  a1=Q {[%clk 0:00:11]} 49. h7 {[%clk 0:00:23]}  Kg7 {[%clk 0:00:11]} 50. c7 {[%clk 0:00:22]}  Bxc7 {[%clk 0:00:11]} 0-1


[Site "https://www.chess.com"]

[Event "Titled Tuesday Blitz August 24 2021"]
[White "Mezentsev, Ivan"]
[Black "Mirzanurov, Bulat"]
[WhiteFideId "13706195"]
[BlackFideId "4184521"]
[WhiteElo "2295"]
[BlackElo "2208"]
[Result "1-0"]
[Round "09"]
[TimeControl "180+1"]
[Date "2021.08.24"]
[WhiteClock "0:00:52"]
[BlackClock "0:00:03"]

1. d4 {[%clk 0:03:00]}  d5 {[%clk 0:03:00]} 2. Nf3 {[%clk 0:02:58]}  Nf6 {[%clk 0:02:58]} 3. Bf4 {[%clk 0:02:59]}  e6 {[%clk 0:02:57]} 4. e3 {[%clk 0:02:59]}  Bd6 {[%clk 0:02:57]} 5. Bg3 {[%clk 0:02:59]}  O-O {[%clk 0:02:56]} 6. Nbd2 {[%clk 0:02:59]}  c5 {[%clk 0:02:56]} 7. c3 {[%clk 0:02:59]}  Qc7 {[%clk 0:02:53]} 8. dxc5 {[%clk 0:02:58]}  Qxc5 {[%clk 0:02:51]} 9. Bd3 {[%clk 0:02:58]}  Nbd7 {[%clk 0:02:49]} 10. Qe2 {[%clk 0:02:50]}  e5 {[%clk 0:02:45]} 11. e4 {[%clk 0:02:45]}  Re8 {[%clk 0:02:40]} 12. O-O-O {[%clk 0:02:14]}  d4 {[%clk 0:02:37]} 13. Nb3 {[%clk 0:02:13]}  Qc7 {[%clk 0:02:30]} 14. Kb1 {[%clk 0:02:12]}  dxc3 {[%clk 0:02:25]} 15. Rc1 {[%clk 0:02:12]}  a5 {[%clk 0:02:18]} 16. Rxc3 {[%clk 0:02:10]}  Qb6 {[%clk 0:02:15]} 17. Nbd2 {[%clk 0:02:05]}  a4 {[%clk 0:02:12]} 18. Nc4 {[%clk 0:02:03]}  Qc7 {[%clk 0:01:19]} 19. Ncxe5 {[%clk 0:01:57]}  Qb8 {[%clk 0:01:12]} 20. Nxd7 {[%clk 0:01:53]}  Bxd7 {[%clk 0:01:09]} 21. Bxd6 {[%clk 0:01:39]}  Qxd6 {[%clk 0:01:06]} 22. e5 {[%clk 0:01:39]}  Qb6 {[%clk 0:00:59]} 23. Qc2 {[%clk 0:01:18]}  Nd5 {[%clk 0:00:53]} 24. Bxh7+ {[%clk 0:01:17]}  Kh8 {[%clk 0:00:49]} 25. Rc4 {[%clk 0:01:17]}  a3 {[%clk 0:00:45]} 26. Rh4 {[%clk 0:01:05]}  axb2 {[%clk 0:00:14]} 27. Be4+ {[%clk 0:00:59]}  Kg8 {[%clk 0:00:14]} 28. Bxd5 {[%clk 0:00:58]}  Bf5 {[%clk 0:00:09]} 29. Qxf5 {[%clk 0:00:54]}  Rxa2 {[%clk 0:00:03]} 30. Qxf7# {[%clk 0:00:52]} 1-0


[Site "https://www.chess.com"]

[Event "Titled Tuesday Blitz August 24 2021"]
[White "Papasimakopoulos, Alexandros"]
[Black "Wagner, Dennis"]
[WhiteFideId "4244125"]
[BlackFideId "24650684"]
[WhiteElo "2352"]
[BlackElo "2355"]
[Result "1-0"]
[Round "09"]
[TimeControl "180+1"]
[Date "2021.08.24"]
[WhiteClock "0:00:35"]
[BlackClock "0:00:09"]

1. d4 {[%clk 0:03:00]}  Nf6 {[%clk 0:02:59]} 2. c4 {[%clk 0:03:01]}  e6 {[%clk 0:02:59]} 3. Nc3 {[%clk 0:03:01]}  Bb4 {[%clk 0:02:59]} 4. Qc2 {[%clk 0:03:02]}  d5 {[%clk 0:02:59]} 5. cxd5 {[%clk 0:03:02]}  exd5 {[%clk 0:02:59]} 6. Bg5 {[%clk 0:03:02]}  h6 {[%clk 0:02:58]} 7. Bh4 {[%clk 0:03:02]}  Nc6 {[%clk 0:02:57]} 8. e3 {[%clk 0:03:02]}  g5 {[%clk 0:02:57]} 9. Bg3 {[%clk 0:03:03]}  Ne4 {[%clk 0:02:58]} 10. Bb5 {[%clk 0:03:03]}  O-O {[%clk 0:02:55]} 11. Ne2 {[%clk 0:02:52]}  Bf5 {[%clk 0:02:54]} 12. Bd3 {[%clk 0:02:51]}  Qe7 {[%clk 0:02:32]} 13. a3 {[%clk 0:02:33]}  Rad8 {[%clk 0:02:16]} 14. O-O {[%clk 0:02:14]}  Ba5 {[%clk 0:02:10]} 15. b4 {[%clk 0:02:13]}  Bxb4 {[%clk 0:01:55]} 16. Bxe4 {[%clk 0:02:04]}  Bxc3 {[%clk 0:01:48]} 17. Bxf5 {[%clk 0:02:05]}  Bxa1 {[%clk 0:01:49]} 18. Rxa1 {[%clk 0:02:05]}  Rfe8 {[%clk 0:01:41]} 19. Bd3 {[%clk 0:02:00]}  Rd7 {[%clk 0:01:29]} 20. Bb5 {[%clk 0:01:57]}  Qf6 {[%clk 0:01:28]} 21. Bxc6 {[%clk 0:01:51]}  Qxc6 {[%clk 0:01:26]} 22. Qxc6 {[%clk 0:01:50]}  bxc6 {[%clk 0:01:27]} 23. Rb1 {[%clk 0:01:49]}  f5 {[%clk 0:01:15]} 24. Nc3 {[%clk 0:01:44]}  f4 {[%clk 0:01:03]} 25. exf4 {[%clk 0:01:44]}  c5 {[%clk 0:01:04]} 26. dxc5 {[%clk 0:01:33]}  d4 {[%clk 0:01:04]} 27. c6 {[%clk 0:01:17]}  Rd6 {[%clk 0:00:40]} 28. fxg5 {[%clk 0:01:17]}  Rde6 {[%clk 0:00:26]} 29. f3 {[%clk 0:00:54]}  dxc3 {[%clk 0:00:26]} 30. Rc1 {[%clk 0:00:55]}  Rxc6 {[%clk 0:00:24]} 31. gxh6 {[%clk 0:00:51]}  c2 {[%clk 0:00:24]} 32. Kf2 {[%clk 0:00:50]}  Kh7 {[%clk 0:00:23]} 33. Bf4 {[%clk 0:00:49]}  a5 {[%clk 0:00:22]} 34. h4 {[%clk 0:00:48]}  a4 {[%clk 0:00:23]} 35. g4 {[%clk 0:00:46]}  Rb8 {[%clk 0:00:22]} 36. h5 {[%clk 0:00:44]}  Rb1 {[%clk 0:00:23]} 37. g5 {[%clk 0:00:43]}  Rxc1 {[%clk 0:00:16]} 38. Bxc1 {[%clk 0:00:43]}  Rd6 {[%clk 0:00:16]} 39. g6+ {[%clk 0:00:40]}  Kg8 {[%clk 0:00:14]} 40. h7+ {[%clk 0:00:39]}  Kg7 {[%clk 0:00:11]} 41. Bb2+ {[%clk 0:00:39]}  Kh6 {[%clk 0:00:09]} 42. h8=Q+ {[%clk 0:00:39]}  Kg5 {[%clk 0:00:09]} 43. Qe5+ {[%clk 0:00:35]}  Kh6 {[%clk 0:00:09]} 44. Bc1+ {[%clk 0:00:35]} 1-0


[Site "https://www.chess.com"]